{"text_format":"3","workbook":"xlsx","n_sheets":2,"sheets":["Rastreador RSVP","Resumen de RSVP"],"not_rendered":{"charts":2,"defined_names":22},"read":"whole","date_system":"1900"}

{"sheet":"Rastreador RSVP","index":0,"n_rows":15,"n_cols":15,"rows_kept":15,"merged":[[0,3,0,4],[0,5,0,7],[1,3,1,14]]}
[{"$nulls":5},"RESUMEN DE RSVP"]
[null,"FECHA DE LA BODA",null,"Rastreador de invitación a boda"]
[null,{"$f":"TODAY()+283","v":"2019-06-28"},null,"NOMBRE DEL INVITADO","¿ENVIADO?","Confirmar asistencia","FIESTA","INVITADO","RELACIÓN","DIRECCIÓN","CIUDAD","ESTADO","CÓDIGO","TELÉFONO","CORREO DE CONTACTO"]
[null,"DÍAS RESTANTES",null,"Nombre 1","Sí","Sí",1,"Futuro cónyuge 1","Hermano","Dirección","Ciudad","Estado","CÓDIGO","Teléfono","alguien@ejemplo.com"]
[null,{"$f":"DíasRestantes","v":283},null,"Nombre 2","Sí","No",3,"Futuro cónyuge 1","Amigo","Dirección","Ciudad","Estado","CÓDIGO","Teléfono","alguien@ejemplo.com"]
[null,"ASISTIRÁN",null,"Nombre 3","Sí","Sí",1,"Otros","Amigo","Dirección","Ciudad","Estado","CÓDIGO","Teléfono","alguien@ejemplo.com"]
[null,{"$f":"AsistentesTotales","v":12},null,"Nombre 4","Sí","No",2,"Futuro cónyuge 2","Amigo","Dirección","Ciudad","Estado","CÓDIGO","Teléfono","alguien@ejemplo.com"]
[null,"NO ASISTIRÁN",null,"Nombre 5","Sí","Sí",2,"Futuro cónyuge 2","Amigo","Dirección","Ciudad","Estado","CÓDIGO","Teléfono","alguien@ejemplo.com"]
[null,{"$f":"TotalQueNoAsistirá","v":6},null,"Nombre 6","Sí","Tentativo",null,"Otros","Amigo","Dirección","Ciudad","Estado","CÓDIGO","Teléfono","alguien@ejemplo.com"]
[null,"PENDIENTES",null,"Nombre 7","Sí","Sí",2,"Futuro cónyuge 2","Amigo","Dirección","Ciudad","Estado","CÓDIGO","Teléfono","alguien@ejemplo.com"]
[null,{"$f":"RSVPPendiente","v":1},null,"Nombre 8","Sí","No",1,"Otros","Amigo","Dirección","Ciudad","Estado","CÓDIGO","Teléfono","alguien@ejemplo.com"]
[{"$nulls":3},"Nombre 9","Sí","Sí",4,"Futuro cónyuge 1","Amigo","Dirección","Ciudad","Estado","CÓDIGO","Teléfono","alguien@ejemplo.com"]
[{"$nulls":3},"Nombre 10","Sí","Sí",2,"Futuro cónyuge 1","Amigo","Dirección","Ciudad","Estado","CÓDIGO","Teléfono","alguien@ejemplo.com"]
[{"$nulls":3},"Nombre 11","Sí",null,null,"Futuro cónyuge 2","Hermano","Dirección","Ciudad","Estado","CÓDIGO","Teléfono","alguien@ejemplo.com"]
[{"$nulls":3},"TOTALES:",{"$f":"COUNTIF('Rastreador RSVP'!$E$4:$E$14,\"Sí\")","v":11},{"$f":"COUNTA('Rastreador RSVP'!$F$4:$F$14)","v":10},{"$f":"SUBTOTAL(109,tblInvitados[FIESTA])","v":18}]

{"sheet":"Resumen de RSVP","index":1,"n_rows":11,"n_cols":15,"rows_kept":11,"merged":[[0,3,0,4],[0,5,0,8],[1,3,1,11],[2,3,6,3],[2,4,6,4],[7,3,11,3],[7,4,11,4]]}
[{"$nulls":3},"RASTREADOR DE RSVP"]
[null,"FECHA DE LA BODA",null,"resumen de rsvp",{"$nulls":10},"notas"]
[null,{"$f":"FechaDeLaBoda","v":"2019-06-28"},null,"SÍ","El gráfico de barras agrupadas que muestra los tipos de invitado que eligen RSVP Sí o No se encuentra en esta celda."]
[null,"DÍAS RESTANTES",{"$nulls":3},"OTROS",{"$f":"IFERROR(SUMIFS(tblInvitados[FIESTA],tblInvitados[INVITADO],\"=Otros\",tblInvitados[Confirmar asistencia],\"Sí\"),0)","v":1},{"$f":"tblInvitados[[#Totals],[¿ENVIADO?]]","v":11}]
[null,{"$f":"DíasRestantes","v":283},{"$nulls":3},"FUTURO CÓNYUGE 2",{"$f":"IFERROR(SUMIFS(tblInvitados[FIESTA],tblInvitados[INVITADO],\"=Futuro cónyuge 2\",tblInvitados[Confirmar asistencia],\"Sí\"),0)","v":4},{"$f":"tblInvitados[[#Totals],[¿ENVIADO?]]","v":11}]
[null,"ASISTIRÁN",{"$nulls":3},"FUTURO CÓNYUGE 1",{"$f":"IFERROR(SUMIFS(tblInvitados[FIESTA],tblInvitados[INVITADO],\"=Futuro cónyuge 1\",tblInvitados[Confirmar asistencia],\"Sí\"),0)","v":7},{"$f":"tblInvitados[[#Totals],[¿ENVIADO?]]","v":11}]
[null,{"$f":"AsistentesTotales","v":12}]
[null,"NO ASISTIRÁN",null,"NO","El gráfico de barras agrupadas que muestra los tipos de invitado que eligen RSVP No se encuentra en esta celda."]
[null,{"$f":"TotalQueNoAsistirá","v":6},{"$nulls":3},"OTROS",{"$f":"IFERROR(SUMIFS(tblInvitados[FIESTA],tblInvitados[INVITADO],\"=Otros\",tblInvitados[Confirmar asistencia],\"No\"),0)","v":1},{"$f":"tblInvitados[[#Totals],[¿ENVIADO?]]","v":11}]
[null,"PENDIENTES",{"$nulls":3},"FUTURO CÓNYUGE 2",{"$f":"IFERROR(SUMIFS(tblInvitados[FIESTA],tblInvitados[INVITADO],\"=Futuro cónyuge 2\",tblInvitados[Confirmar asistencia],\"No\"),0)","v":2},{"$f":"tblInvitados[[#Totals],[¿ENVIADO?]]","v":11}]
[null,{"$f":"RSVPPendiente","v":1},{"$nulls":3},"FUTURO CÓNYUGE 1",{"$f":"IFERROR(SUMIFS(tblInvitados[FIESTA],tblInvitados[INVITADO],\"=Futuro cónyuge 1\",tblInvitados[Confirmar asistencia],\"No\"),0)","v":3},{"$f":"tblInvitados[[#Totals],[¿ENVIADO?]]","v":11}]